[Event "Titled Tuesday Blitz January 17 Early 2023"]
[White "Puranik, Abhimanyu"]
[Black "Mahdavi, Reza"]
[WhiteFideId "5061245"]
[BlackFideId "12595926"]
[WhiteElo "2613"]
[BlackElo "2339"]
[Result "1-0"]
[Round "03"]
[TimeControl "180+2"]
[Date "2023.01.17"]
[WhiteClock "0:00:33"]
[BlackClock "0:00:49"]

1. c4 {[%clk 0:03:00]}  g6 {[%clk 0:02:57]} 2. g3 {[%clk 0:03:00]}  Bg7 {[%clk 0:02:57]} 3. Bg2 {[%clk 0:03:00]}  c5 {[%clk 0:02:56]} 4. Nc3 {[%clk 0:03:00]}  Nc6 {[%clk 0:02:56]} 5. d3 {[%clk 0:03:01]}  e6 {[%clk 0:02:53]} 6. Bd2 {[%clk 0:02:45]}  Nge7 {[%clk 0:02:50]} 7. h4 {[%clk 0:02:45]}  h5 {[%clk 0:02:48]} 8. Nf3 {[%clk 0:02:44]}  O-O {[%clk 0:02:47]} 9. Qc1 {[%clk 0:02:36]}  b6 {[%clk 0:02:35]} 10. Bh6 {[%clk 0:02:33]}  d5 {[%clk 0:02:29]} 11. Bxg7 {[%clk 0:02:31]}  Kxg7 {[%clk 0:02:28]} 12. O-O {[%clk 0:02:16]}  Bb7 {[%clk 0:02:10]} 13. a3 {[%clk 0:02:14]}  dxc4 {[%clk 0:01:55]} 14. dxc4 {[%clk 0:02:13]}  Na5 {[%clk 0:01:55]} 15. Nd2 {[%clk 0:02:12]}  Bxg2 {[%clk 0:01:56]} 16. Kxg2 {[%clk 0:02:13]}  Qc7 {[%clk 0:01:51]} 17. Qc2 {[%clk 0:02:04]}  Rad8 {[%clk 0:01:51]} 18. b3 {[%clk 0:01:52]}  Rd7 {[%clk 0:01:43]} 19. Nf3 {[%clk 0:01:51]}  Rfd8 {[%clk 0:01:41]} 20. Ne4 {[%clk 0:01:49]}  f6 {[%clk 0:01:36]} 21. Rad1 {[%clk 0:01:36]}  e5 {[%clk 0:01:36]} 22. Nc3 {[%clk 0:01:29]}  Qc6 {[%clk 0:01:34]} 23. e4 {[%clk 0:01:26]}  Qe6 {[%clk 0:01:23]} 24. Rxd7 {[%clk 0:01:21]}  Rxd7 {[%clk 0:01:24]} 25. Nd5 {[%clk 0:01:21]}  Nac6 {[%clk 0:01:24]} 26. b4 {[%clk 0:01:19]}  Nd4 {[%clk 0:01:23]} 27. Qd3 {[%clk 0:01:03]}  Nxd5 {[%clk 0:01:20]} 28. cxd5 {[%clk 0:01:02]}  Qd6 {[%clk 0:01:20]} 29. bxc5 {[%clk 0:00:58]}  bxc5 {[%clk 0:01:18]} 30. Rb1 {[%clk 0:00:56]}  Rc7 {[%clk 0:01:18]} 31. Qc4 {[%clk 0:00:56]}  Kh6 {[%clk 0:01:13]} 32. Ne1 {[%clk 0:00:54]}  f5 {[%clk 0:01:11]} 33. Nf3 {[%clk 0:00:44]}  fxe4 {[%clk 0:01:00]} 34. Ng5 {[%clk 0:00:44]}  Rd7 {[%clk 0:01:01]} 35. Nxe4 {[%clk 0:00:34]}  Qxd5 {[%clk 0:01:01]} 36. Qxd5 {[%clk 0:00:34]}  Rxd5 {[%clk 0:01:02]} 37. Rb7 {[%clk 0:00:35]}  Ne6 {[%clk 0:00:49]} 38. Nf6 {[%clk 0:00:33]} 1-0


[Site "https://www.chess.com"]

[Event "Titled Tuesday Blitz January 17 Early 2023"]
[White "Atabayev, Saparmyrat"]
[Black "Lenderman, Aleksandr"]
[WhiteFideId "14000571"]
[BlackFideId "2021285"]
[WhiteElo "2448"]
[BlackElo "2572"]
[Result "0-1"]
[Round "03"]
[TimeControl "180+2"]
[Date "2023.01.17"]
[WhiteClock "0:01:44"]
[BlackClock "0:02:00"]

1. e4 {[%clk 0:03:00]}  e6 {[%clk 0:02:55]} 2. b3 {[%clk 0:03:00]}  d5 {[%clk 0:02:54]} 3. Bb2 {[%clk 0:03:00]}  Nc6 {[%clk 0:02:52]} 4. Nc3 {[%clk 0:02:59]}  d4 {[%clk 0:02:52]} 5. Nce2 {[%clk 0:02:59]}  e5 {[%clk 0:02:52]} 6. Nf3 {[%clk 0:02:55]}  Nf6 {[%clk 0:02:51]} 7. Ng3 {[%clk 0:02:55]}  h5 {[%clk 0:02:51]} 8. h4 {[%clk 0:02:43]}  a6 {[%clk 0:02:50]} 9. c3 {[%clk 0:02:41]}  Bc5 {[%clk 0:02:49]} 10. Qc2 {[%clk 0:02:37]}  dxc3 {[%clk 0:02:26]} 11. dxc3 {[%clk 0:02:36]}  Ng4 {[%clk 0:02:25]} 12. Bc4 {[%clk 0:01:56]}  Bxf2+ {[%clk 0:02:22]} 13. Qxf2 {[%clk 0:01:57]}  Nxf2 {[%clk 0:02:22]} 14. Kxf2 {[%clk 0:01:58]}  Qe7 {[%clk 0:02:21]} 15. a4 {[%clk 0:01:55]}  Be6 {[%clk 0:02:17]} 16. Ba3 {[%clk 0:01:55]}  Qf6 {[%clk 0:02:17]} 17. Bxe6 {[%clk 0:01:55]}  Qxe6 {[%clk 0:02:15]} 18. Rad1 {[%clk 0:01:48]}  Qxb3 {[%clk 0:02:12]} 19. Bc5 {[%clk 0:01:48]}  b6 {[%clk 0:02:11]} 20. Be3 {[%clk 0:01:47]}  f6 {[%clk 0:02:06]} 21. Nf5 {[%clk 0:01:47]}  Qf7 {[%clk 0:02:03]} 22. Bxb6 {[%clk 0:01:44]}  g6 {[%clk 0:02:00]} 0-1


[Site "https://www.chess.com"]

[Event "Titled Tuesday Blitz January 17 Early 2023"]
[White "Kobalia, Mikhail"]
[Black "Svane, Rasmus"]
[WhiteFideId "4119150"]
[BlackFideId "4657101"]
[WhiteElo "2578"]
[BlackElo "2623"]
[Result "1/2-1/2"]
[Round "03"]
[TimeControl "180+2"]
[Date "2023.01.17"]
[WhiteClock "0:00:04"]
[BlackClock "0:00:07"]

1. e4 {[%clk 0:02:57]}  e5 {[%clk 0:03:00]} 2. Nf3 {[%clk 0:02:56]}  Nc6 {[%clk 0:03:01]} 3. Bb5 {[%clk 0:02:56]}  a6 {[%clk 0:03:01]} 4. Ba4 {[%clk 0:02:56]}  Nf6 {[%clk 0:03:01]} 5. O-O {[%clk 0:02:55]}  Be7 {[%clk 0:03:02]} 6. Re1 {[%clk 0:02:49]}  b5 {[%clk 0:03:02]} 7. Bb3 {[%clk 0:02:48]}  O-O {[%clk 0:03:02]} 8. a4 {[%clk 0:02:46]}  Bb7 {[%clk 0:03:03]} 9. d3 {[%clk 0:02:46]}  d6 {[%clk 0:03:03]} 10. Nc3 {[%clk 0:02:45]}  Na5 {[%clk 0:02:53]} 11. axb5 {[%clk 0:02:38]}  Nxb3 {[%clk 0:02:53]} 12. cxb3 {[%clk 0:02:38]}  axb5 {[%clk 0:02:53]} 13. Rxa8 {[%clk 0:02:38]}  Qxa8 {[%clk 0:02:54]} 14. Nxb5 {[%clk 0:02:38]}  Bc6 {[%clk 0:02:55]} 15. Nc3 {[%clk 0:02:36]}  Rb8 {[%clk 0:02:51]} 16. Bg5 {[%clk 0:02:34]}  Qb7 {[%clk 0:02:46]} 17. d4 {[%clk 0:02:33]}  h6 {[%clk 0:02:40]} 18. Bh4 {[%clk 0:02:29]}  g5 {[%clk 0:01:58]} 19. dxe5 {[%clk 0:02:27]}  gxh4 {[%clk 0:01:53]} 20. exf6 {[%clk 0:02:26]}  Bxf6 {[%clk 0:01:54]} 21. Nd4 {[%clk 0:02:18]}  Bxd4 {[%clk 0:01:45]} 22. Qxd4 {[%clk 0:02:17]}  Qxb3 {[%clk 0:01:46]} 23. Re2 {[%clk 0:01:50]}  Qb4 {[%clk 0:01:26]} 24. Qe3 {[%clk 0:01:42]}  Qa5 {[%clk 0:01:15]} 25. Qc1 {[%clk 0:01:26]}  Qg5 {[%clk 0:01:13]} 26. Re3 {[%clk 0:01:14]}  Re8 {[%clk 0:01:00]} 27. Qe1 {[%clk 0:01:09]}  f5 {[%clk 0:00:59]} 28. h3 {[%clk 0:00:59]}  Qg6 {[%clk 0:00:37]} 29. f3 {[%clk 0:00:53]}  fxe4 {[%clk 0:00:36]} 30. Nxe4 {[%clk 0:00:49]}  Bxe4 {[%clk 0:00:36]} 31. Rxe4 {[%clk 0:00:45]}  Rxe4 {[%clk 0:00:36]} 32. fxe4 {[%clk 0:00:43]}  Qg5 {[%clk 0:00:34]} 33. Qc3 {[%clk 0:00:38]}  c5 {[%clk 0:00:34]} 34. Qc4+ {[%clk 0:00:35]}  Kg7 {[%clk 0:00:33]} 35. Qe6 {[%clk 0:00:34]}  Qc1+ {[%clk 0:00:28]} 36. Kh2 {[%clk 0:00:34]}  Qf4+ {[%clk 0:00:29]} 37. Kh1 {[%clk 0:00:32]}  Qc1+ {[%clk 0:00:19]} 38. Kh2 {[%clk 0:00:32]}  Qf4+ {[%clk 0:00:16]} 39. Kh1 {[%clk 0:00:31]}  Qe5 {[%clk 0:00:15]} 40. Qg4+ {[%clk 0:00:29]}  Kh7 {[%clk 0:00:10]} 41. Qxh4 {[%clk 0:00:26]}  Kg6 {[%clk 0:00:08]} 42. Qg4+ {[%clk 0:00:24]}  Kf6 {[%clk 0:00:08]} 43. Qe2 {[%clk 0:00:23]}  Ke7 {[%clk 0:00:07]} 44. Qc2 {[%clk 0:00:13]}  h5 {[%clk 0:00:06]} 45. Kg1 {[%clk 0:00:12]}  h4 {[%clk 0:00:07]} 46. Kf1 {[%clk 0:00:12]}  Qf4+ {[%clk 0:00:07]} 47. Ke2 {[%clk 0:00:11]}  Qg3 {[%clk 0:00:07]} 48. Kd1 {[%clk 0:00:09]}  Qe3 {[%clk 0:00:07]} 49. Qe2 {[%clk 0:00:09]}  Qd4+ {[%clk 0:00:07]} 50. Kc2 {[%clk 0:00:09]}  Qa4+ {[%clk 0:00:07]} 51. Kc1 {[%clk 0:00:08]}  Qa1+ {[%clk 0:00:07]} 52. Kc2 {[%clk 0:00:08]}  Qa4+ {[%clk 0:00:08]} 53. Kb1 {[%clk 0:00:09]}  Qd4 {[%clk 0:00:08]} 54. Qg4 {[%clk 0:00:08]}  Qf6 {[%clk 0:00:06]} 55. Ka2 {[%clk 0:00:07]}  Qf7+ {[%clk 0:00:05]} 56. Ka3 {[%clk 0:00:07]}  Qf6 {[%clk 0:00:06]} 57. Kb3 {[%clk 0:00:05]}  Qf2 {[%clk 0:00:06]} 58. Qg5+ {[%clk 0:00:05]}  Kd7 {[%clk 0:00:06]} 59. Qf5+ {[%clk 0:00:03]}  Qxf5 {[%clk 0:00:05]} 60. exf5 {[%clk 0:00:04]}  d5 {[%clk 0:00:03]} 61. Kc3 {[%clk 0:00:02]}  Kd6 {[%clk 0:00:04]} 62. b4 {[%clk 0:00:02]}  cxb4+ {[%clk 0:00:03]} 63. Kxb4 {[%clk 0:00:02]}  Ke5 {[%clk 0:00:04]} 64. Kc5 {[%clk 0:00:02]}  Kxf5 {[%clk 0:00:04]} 65. Kxd5 {[%clk 0:00:02]}  Kf4 {[%clk 0:00:04]} 66. Kd4 {[%clk 0:00:02]}  Kg3 {[%clk 0:00:05]} 67. Ke3 {[%clk 0:00:02]}  Kxg2 {[%clk 0:00:05]} 68. Ke2 {[%clk 0:00:02]}  Kxh3 {[%clk 0:00:05]} 69. Kf1 {[%clk 0:00:03]}  Kg3 {[%clk 0:00:05]} 70. Kg1 {[%clk 0:00:03]}  h3 {[%clk 0:00:06]} 71. Kh1 {[%clk 0:00:04]}  h2 {[%clk 0:00:07]} 1/2-1/2


[Site "https://www.chess.com"]

[Event "Titled Tuesday Blitz January 17 Early 2023"]
[White "Narayanan, Srinath"]
[Black "Rakotomaharo, Fy Antenaina"]
[WhiteFideId "5018420"]
[BlackFideId "13100050"]
[WhiteElo "2559"]
[BlackElo "2459"]
[Result "1-0"]
[Round "03"]
[TimeControl "180+2"]
[Date "2023.01.17"]
[WhiteClock "0:00:06"]
[BlackClock "0:00:12"]

1. Nf3 {[%clk 0:03:00]}  Nf6 {[%clk 0:02:59]} 2. c4 {[%clk 0:02:59]}  e6 {[%clk 0:02:58]} 3. g3 {[%clk 0:02:59]}  d5 {[%clk 0:02:58]} 4. d4 {[%clk 0:02:57]}  Be7 {[%clk 0:02:57]} 5. Bg2 {[%clk 0:02:58]}  O-O {[%clk 0:02:58]} 6. O-O {[%clk 0:02:59]}  dxc4 {[%clk 0:02:53]} 7. Qc2 {[%clk 0:02:59]}  b5 {[%clk 0:02:53]} 8. a4 {[%clk 0:02:58]}  b4 {[%clk 0:02:53]} 9. Nfd2 {[%clk 0:02:56]}  Nd5 {[%clk 0:02:47]} 10. Nxc4 {[%clk 0:02:56]}  c5 {[%clk 0:02:47]} 11. dxc5 {[%clk 0:02:56]}  Ba6 {[%clk 0:02:48]} 12. Rd1 {[%clk 0:02:55]}  Nd7 {[%clk 0:02:45]} 13. c6 {[%clk 0:02:53]}  Rc8 {[%clk 0:02:42]} 14. Ne3 {[%clk 0:02:31]}  Ne5 {[%clk 0:02:38]} 15. Nxd5 {[%clk 0:02:29]}  exd5 {[%clk 0:02:39]} 16. Rxd5 {[%clk 0:02:28]}  Rxc6 {[%clk 0:02:16]} 17. Qd1 {[%clk 0:02:27]}  Qc8 {[%clk 0:02:03]} 18. Bf4 {[%clk 0:02:24]}  Ng6 {[%clk 0:01:56]} 19. Nd2 {[%clk 0:02:13]}  Nxf4 {[%clk 0:01:52]} 20. gxf4 {[%clk 0:02:14]}  Bf6 {[%clk 0:01:51]} 21. Rb1 {[%clk 0:02:03]}  Rc2 {[%clk 0:01:46]} 22. Ne4 {[%clk 0:02:02]}  Bxb2 {[%clk 0:01:35]} 23. Nd6 {[%clk 0:01:52]}  Qc7 {[%clk 0:01:34]} 24. Be4 {[%clk 0:01:04]}  Rxe2 {[%clk 0:01:12]} 25. Bf3 {[%clk 0:01:03]}  Rc2 {[%clk 0:01:00]} 26. Be4 {[%clk 0:01:03]}  b3 {[%clk 0:00:58]} 27. Kg2 {[%clk 0:00:43]}  g6 {[%clk 0:00:50]} 28. Qf3 {[%clk 0:00:40]}  Rc3 {[%clk 0:00:36]} 29. Bd3 {[%clk 0:00:32]}  Ba3 {[%clk 0:00:33]} 30. Ne4 {[%clk 0:00:28]}  Rxd3 {[%clk 0:00:32]} 31. Rxd3 {[%clk 0:00:29]}  Bxd3 {[%clk 0:00:33]} 32. Qxd3 {[%clk 0:00:30]}  Qxf4 {[%clk 0:00:29]} 33. Rxb3 {[%clk 0:00:31]}  Be7 {[%clk 0:00:28]} 34. Rb7 {[%clk 0:00:27]}  Bh4 {[%clk 0:00:27]} 35. Rxa7 {[%clk 0:00:20]}  Re8 {[%clk 0:00:27]} 36. Ng3 {[%clk 0:00:19]}  Be7 {[%clk 0:00:20]} 37. Qd7 {[%clk 0:00:14]}  Kf8 {[%clk 0:00:16]} 38. a5 {[%clk 0:00:15]}  Bc5 {[%clk 0:00:15]} 39. Rc7 {[%clk 0:00:11]}  Qxf2+ {[%clk 0:00:14]} 40. Kh3 {[%clk 0:00:11]}  Be3 {[%clk 0:00:12]} 41. a6 {[%clk 0:00:10]}  Bb6 {[%clk 0:00:11]} 42. Rb7 {[%clk 0:00:09]}  Be3 {[%clk 0:00:11]} 43. a7 {[%clk 0:00:09]}  Re6 {[%clk 0:00:11]} 44. a8=Q+ {[%clk 0:00:08]}  Kg7 {[%clk 0:00:12]} 45. Qxe6 {[%clk 0:00:06]} 1-0


[Site "https://www.chess.com"]

[Event "Titled Tuesday Blitz January 17 Early 2023"]
[White "Sanal, Vahap"]
[Black "Tatarinov, Dmitry"]
[WhiteFideId "6300545"]
[BlackFideId "24160067"]
[WhiteElo "2600"]
[BlackElo "2310"]
[Result "1/2-1/2"]
[Round "03"]
[TimeControl "180+2"]
[Date "2023.01.17"]
[WhiteClock "0:00:03"]
[BlackClock "0:00:16"]

1. d4 {[%clk 0:03:00]}  Nf6 {[%clk 0:02:58]} 2. Nf3 {[%clk 0:03:00]}  e6 {[%clk 0:02:59]} 3. c4 {[%clk 0:02:55]}  d5 {[%clk 0:03:00]} 4. Nc3 {[%clk 0:02:54]}  Be7 {[%clk 0:03:01]} 5. Bg5 {[%clk 0:02:48]}  h6 {[%clk 0:02:58]} 6. Bh4 {[%clk 0:02:47]}  O-O {[%clk 0:02:56]} 7. e3 {[%clk 0:02:47]}  Nbd7 {[%clk 0:02:55]} 8. Be2 {[%clk 0:02:46]}  b6 {[%clk 0:02:50]} 9. cxd5 {[%clk 0:02:44]}  Nxd5 {[%clk 0:02:50]} 10. Bxe7 {[%clk 0:02:25]}  Qxe7 {[%clk 0:02:50]} 11. Nxd5 {[%clk 0:02:23]}  exd5 {[%clk 0:02:51]} 12. O-O {[%clk 0:02:23]}  Nf6 {[%clk 0:02:49]} 13. Rc1 {[%clk 0:02:16]}  c5 {[%clk 0:02:50]} 14. dxc5 {[%clk 0:02:07]}  bxc5 {[%clk 0:02:50]} 15. Qc2 {[%clk 0:02:07]}  Rb8 {[%clk 0:02:46]} 16. b3 {[%clk 0:02:05]}  Ne4 {[%clk 0:02:27]} 17. Nd2 {[%clk 0:02:03]}  Nxd2 {[%clk 0:02:27]} 18. Qxd2 {[%clk 0:02:03]}  Be6 {[%clk 0:02:26]} 19. Bf3 {[%clk 0:02:03]}  Rfd8 {[%clk 0:02:20]} 20. Qa5 {[%clk 0:02:03]}  Rdc8 {[%clk 0:02:20]} 21. Rfd1 {[%clk 0:02:02]}  d4 {[%clk 0:02:14]} 22. exd4 {[%clk 0:01:57]}  cxd4 {[%clk 0:02:15]} 23. Rxc8+ {[%clk 0:01:56]}  Rxc8 {[%clk 0:02:16]} 24. Rxd4 {[%clk 0:01:40]}  Rc2 {[%clk 0:02:12]} 25. Qd8+ {[%clk 0:01:35]}  Qf8 {[%clk 0:02:09]} 26. Qa5 {[%clk 0:01:19]}  Rc1+ {[%clk 0:01:57]} 27. Rd1 {[%clk 0:01:16]}  Rxd1+ {[%clk 0:01:55]} 28. Bxd1 {[%clk 0:01:17]}  Qd6 {[%clk 0:01:54]} 29. Be2 {[%clk 0:01:14]}  Qd4 {[%clk 0:01:42]} 30. h3 {[%clk 0:01:09]}  g6 {[%clk 0:01:40]} 31. Bf3 {[%clk 0:01:06]}  h5 {[%clk 0:01:39]} 32. Qe1 {[%clk 0:00:57]}  h4 {[%clk 0:01:37]} 33. Qe2 {[%clk 0:00:56]}  Qc3 {[%clk 0:01:30]} 34. Kh2 {[%clk 0:00:44]}  Qc7+ {[%clk 0:01:30]} 35. g3 {[%clk 0:00:44]}  a5 {[%clk 0:01:25]} 36. Kg2 {[%clk 0:00:43]}  hxg3 {[%clk 0:01:24]} 37. fxg3 {[%clk 0:00:43]}  Qc3 {[%clk 0:01:23]} 38. h4 {[%clk 0:00:43]}  Qa1 {[%clk 0:01:21]} 39. Qd2 {[%clk 0:00:38]}  Qe5 {[%clk 0:01:19]} 40. Qf2 {[%clk 0:00:35]}  Qc3 {[%clk 0:01:16]} 41. Qe2 {[%clk 0:00:32]}  Kg7 {[%clk 0:01:14]} 42. h5 {[%clk 0:00:28]}  gxh5 {[%clk 0:01:11]} 43. Bxh5 {[%clk 0:00:29]}  Bd5+ {[%clk 0:01:10]} 44. Bf3 {[%clk 0:00:30]}  Be6 {[%clk 0:01:10]} 45. Be4 {[%clk 0:00:24]}  Qd4 {[%clk 0:01:07]} 46. Bf3 {[%clk 0:00:21]}  Qc3 {[%clk 0:01:07]} 47. Qf2 {[%clk 0:00:21]}  Kg8 {[%clk 0:01:03]} 48. Kh2 {[%clk 0:00:17]}  Kg7 {[%clk 0:01:04]} 49. Kg1 {[%clk 0:00:17]}  Kg8 {[%clk 0:01:04]} 50. Qe2 {[%clk 0:00:17]}  Kg7 {[%clk 0:01:04]} 51. Kf2 {[%clk 0:00:15]}  Kg8 {[%clk 0:01:05]} 52. Qe3 {[%clk 0:00:16]}  Qb2+ {[%clk 0:01:04]} 53. Qe2 {[%clk 0:00:15]}  Qd4+ {[%clk 0:01:04]} 54. Kg2 {[%clk 0:00:14]}  Qc3 {[%clk 0:01:04]} 55. Ba8 {[%clk 0:00:11]}  Kg7 {[%clk 0:01:00]} 56. Bb7 {[%clk 0:00:11]}  Kg8 {[%clk 0:01:00]} 57. Qf2 {[%clk 0:00:11]}  Kg7 {[%clk 0:00:59]} 58. Ba8 {[%clk 0:00:06]}  Kg8 {[%clk 0:00:48]} 59. Kh2 {[%clk 0:00:05]}  Qd3 {[%clk 0:00:40]} 60. Bh1 {[%clk 0:00:04]}  Qh7+ {[%clk 0:00:38]} 61. Kg1 {[%clk 0:00:04]}  Qb1+ {[%clk 0:00:38]} 62. Kh2 {[%clk 0:00:03]}  Qh7+ {[%clk 0:00:38]} 63. Kg1 {[%clk 0:00:02]}  Qg7 {[%clk 0:00:39]} 64. Be4 {[%clk 0:00:02]}  Qe5 {[%clk 0:00:38]} 65. Bf3 {[%clk 0:00:02]}  Qc3 {[%clk 0:00:38]} 66. Kg2 {[%clk 0:00:02]}  Bf5 {[%clk 0:00:37]} 67. g4 {[%clk 0:00:03]}  Be6 {[%clk 0:00:37]} 68. Qe2 {[%clk 0:00:03]}  Kg7 {[%clk 0:00:37]} 69. Kg3 {[%clk 0:00:04]}  Qc7+ {[%clk 0:00:36]} 70. Kh3 {[%clk 0:00:04]}  Qf4 {[%clk 0:00:33]} 71. Kg2 {[%clk 0:00:05]}  Kg8 {[%clk 0:00:33]} 72. Kg1 {[%clk 0:00:03]}  Qg3+ {[%clk 0:00:30]} 73. Qg2 {[%clk 0:00:03]}  Qe1+ {[%clk 0:00:29]} 74. Kh2 {[%clk 0:00:03]}  Qe5+ {[%clk 0:00:27]} 75. Qg3 {[%clk 0:00:03]}  Qc3 {[%clk 0:00:26]} 76. Bg2 {[%clk 0:00:02]}  Qb2 {[%clk 0:00:25]} 77. Qb8+ {[%clk 0:00:02]}  Kg7 {[%clk 0:00:25]} 78. Qf4 {[%clk 0:00:02]}  Qxa2 {[%clk 0:00:22]} 79. Qg5+ {[%clk 0:00:03]}  Kf8 {[%clk 0:00:22]} 80. Qd8+ {[%clk 0:00:04]}  Kg7 {[%clk 0:00:23]} 81. Qg5+ {[%clk 0:00:04]}  Kf8 {[%clk 0:00:23]} 82. Qc5+ {[%clk 0:00:05]}  Kg8 {[%clk 0:00:23]} 83. g5 {[%clk 0:00:03]}  Bxb3 {[%clk 0:00:19]} 84. Kg3 {[%clk 0:00:03]}  Be6 {[%clk 0:00:18]} 85. Qd4 {[%clk 0:00:02]}  Qb3+ {[%clk 0:00:18]} 86. Bf3 {[%clk 0:00:01]}  Qb8+ {[%clk 0:00:17]} 87. Kg2 {[%clk 0:00:02]}  Qb4 {[%clk 0:00:17]} 88. Qf6 {[%clk 0:00:02]}  a4 {[%clk 0:00:17]} 89. g6 {[%clk 0:00:03]}  Qf8 {[%clk 0:00:16]} 90. gxf7+ {[%clk 0:00:02]}  Bxf7 {[%clk 0:00:16]} 91. Qg5+ {[%clk 0:00:02]}  Qg7 {[%clk 0:00:17]} 92. Qxg7+ {[%clk 0:00:02]}  Kxg7 {[%clk 0:00:18]} 93. Be4 {[%clk 0:00:03]}  Kf6 {[%clk 0:00:18]} 94. Kf2 {[%clk 0:00:02]}  Ke5 {[%clk 0:00:18]} 95. Ke3 {[%clk 0:00:03]}  a3 {[%clk 0:00:18]} 96. Bb1 {[%clk 0:00:04]}  Kd6 {[%clk 0:00:18]} 97. Kd4 {[%clk 0:00:04]}  Be6 {[%clk 0:00:18]} 98. Kc3 {[%clk 0:00:04]}  Kc5 {[%clk 0:00:19]} 99. Bg6 {[%clk 0:00:03]}  Bd5 {[%clk 0:00:17]} 100. Bc2 {[%clk 0:00:04]}  Kb5 {[%clk 0:00:17]} 101. Bb1 {[%clk 0:00:03]}  Ka5 {[%clk 0:00:18]} 102. Bc2 {[%clk 0:00:04]}  Be6 {[%clk 0:00:18]} 103. Bb3 {[%clk 0:00:04]}  Bf5 {[%clk 0:00:17]} 104. Bc2 {[%clk 0:00:02]}  Be6 {[%clk 0:00:14]} 105. Bb3 {[%clk 0:00:03]}  Bd7 {[%clk 0:00:15]} 106. Bc2 {[%clk 0:00:03]}  Ba4 {[%clk 0:00:15]} 107. Bxa4 {[%clk 0:00:02]}  a2 {[%clk 0:00:16]} 108. Kb2 {[%clk 0:00:02]}  Kxa4 {[%clk 0:00:16]} 109. Kxa2 {[%clk 0:00:03]} 1/2-1/2


[Site "https://www.chess.com"]

[Event "Titled Tuesday Blitz January 17 Early 2023"]
[White "Dourerassou, Jonathan"]
[Black "Zierk, Steven"]
[WhiteFideId "628050"]
[BlackFideId "2034255"]
[WhiteElo "2414"]
[BlackElo "2488"]
[Result "0-1"]
[Round "03"]
[TimeControl "180+2"]
[Date "2023.01.17"]
[WhiteClock "0:00:25"]
[BlackClock "0:00:07"]

1. d4 {[%clk 0:03:00]}  e6 {[%clk 0:02:55]} 2. e4 {[%clk 0:03:00]}  d5 {[%clk 0:02:55]} 3. Nc3 {[%clk 0:03:01]}  Bb4 {[%clk 0:02:55]} 4. Ne2 {[%clk 0:02:59]}  dxe4 {[%clk 0:02:55]} 5. a3 {[%clk 0:03:00]}  Be7 {[%clk 0:02:55]} 6. Nxe4 {[%clk 0:02:59]}  Nf6 {[%clk 0:02:56]} 7. N2g3 {[%clk 0:02:58]}  Nbd7 {[%clk 0:02:54]} 8. Bd3 {[%clk 0:02:58]}  c5 {[%clk 0:02:50]} 9. dxc5 {[%clk 0:02:57]}  Nxc5 {[%clk 0:02:50]} 10. Nxc5 {[%clk 0:02:54]}  Bxc5 {[%clk 0:02:51]} 11. O-O {[%clk 0:02:54]}  Bd7 {[%clk 0:02:47]} 12. Bg5 {[%clk 0:02:53]}  Bc6 {[%clk 0:02:43]} 13. Bxf6 {[%clk 0:02:31]}  Qxf6 {[%clk 0:02:32]} 14. Be4 {[%clk 0:02:30]}  Qxb2 {[%clk 0:02:25]} 15. Bxc6+ {[%clk 0:02:17]}  bxc6 {[%clk 0:02:26]} 16. Ne4 {[%clk 0:02:16]}  Be7 {[%clk 0:02:19]} 17. Nd6+ {[%clk 0:02:15]}  Kf8 {[%clk 0:02:10]} 18. Rb1 {[%clk 0:02:12]}  Qxa3 {[%clk 0:02:07]} 19. Nc4 {[%clk 0:02:07]}  Qc5 {[%clk 0:02:05]} 20. Qe2 {[%clk 0:02:03]}  g6 {[%clk 0:02:02]} 21. Rb7 {[%clk 0:01:39]}  Kg7 {[%clk 0:01:59]} 22. Qe5+ {[%clk 0:01:37]}  Qxe5 {[%clk 0:01:44]} 23. Nxe5 {[%clk 0:01:38]}  Rhe8 {[%clk 0:01:42]} 24. Ra1 {[%clk 0:01:36]}  a6 {[%clk 0:01:12]} 25. Nxc6 {[%clk 0:01:30]}  Bf6 {[%clk 0:01:08]} 26. Ra2 {[%clk 0:01:25]}  Rec8 {[%clk 0:00:56]} 27. Rb6 {[%clk 0:01:22]}  a5 {[%clk 0:00:57]} 28. g3 {[%clk 0:01:21]}  a4 {[%clk 0:00:55]} 29. Kg2 {[%clk 0:01:19]}  a3 {[%clk 0:00:54]} 30. h4 {[%clk 0:01:17]}  h5 {[%clk 0:00:53]} 31. Kf3 {[%clk 0:01:15]}  Ra4 {[%clk 0:00:49]} 32. Nb4 {[%clk 0:01:12]}  Bb2 {[%clk 0:00:35]} 33. Rb7 {[%clk 0:01:06]}  Ra5 {[%clk 0:00:27]} 34. Ke3 {[%clk 0:01:03]}  Rc3+ {[%clk 0:00:17]} 35. Nd3 {[%clk 0:01:02]}  g5 {[%clk 0:00:10]} 36. hxg5 {[%clk 0:00:55]}  Rxc2 {[%clk 0:00:06]} 37. Nxb2 {[%clk 0:00:53]}  Rxb2 {[%clk 0:00:07]} 38. Rbxb2 {[%clk 0:00:48]}  axb2 {[%clk 0:00:08]} 39. Rxb2 {[%clk 0:00:49]}  Rxg5 {[%clk 0:00:08]} 40. Rb4 {[%clk 0:00:49]}  Kg6 {[%clk 0:00:08]} 41. Kf3 {[%clk 0:00:50]}  Rc5 {[%clk 0:00:06]} 42. Ra4 {[%clk 0:00:49]}  f5 {[%clk 0:00:06]} 43. Rb4 {[%clk 0:00:47]}  e5 {[%clk 0:00:05]} 44. Kg2 {[%clk 0:00:47]}  Rc2 {[%clk 0:00:05]} 45. Kf3 {[%clk 0:00:47]}  e4+ {[%clk 0:00:05]} 46. Ke3 {[%clk 0:00:47]}  Kg5 {[%clk 0:00:05]} 47. Rb8 {[%clk 0:00:46]}  Kg4 {[%clk 0:00:05]} 48. Rg8+ {[%clk 0:00:46]}  Kh3 {[%clk 0:00:06]} 49. Rg5 {[%clk 0:00:46]}  Rc3+ {[%clk 0:00:06]} 50. Ke2 {[%clk 0:00:46]}  Rf3 {[%clk 0:00:06]} 51. Rxh5+ {[%clk 0:00:45]}  Kg2 {[%clk 0:00:05]} 52. Rg5 {[%clk 0:00:41]}  Rxf2+ {[%clk 0:00:05]} 53. Ke3 {[%clk 0:00:42]}  Rf3+ {[%clk 0:00:06]} 54. Ke2 {[%clk 0:00:43]}  Rf2+ {[%clk 0:00:06]} 55. Ke3 {[%clk 0:00:42]}  Kf1 {[%clk 0:00:06]} 56. g4 {[%clk 0:00:41]}  Rf3+ {[%clk 0:00:07]} 57. Kd4 {[%clk 0:00:40]}  e3 {[%clk 0:00:04]} 58. Rxf5 {[%clk 0:00:23]}  Rxf5 {[%clk 0:00:04]} 59. gxf5 {[%clk 0:00:24]}  e2 {[%clk 0:00:04]} 60. Ke5 {[%clk 0:00:24]}  e1=Q+ {[%clk 0:00:05]} 61. Kf6 {[%clk 0:00:25]}  Kf2 {[%clk 0:00:05]} 62. Kg7 {[%clk 0:00:25]}  Qc3+ {[%clk 0:00:05]} 63. f6 {[%clk 0:00:25]}  Kf3 {[%clk 0:00:06]} 64. Kg6 {[%clk 0:00:25]}  Qc5 {[%clk 0:00:06]} 65. Kg7 {[%clk 0:00:25]}  Qg5+ {[%clk 0:00:06]} 66. Kf7 {[%clk 0:00:25]}  Kf4 {[%clk 0:00:06]} 67. Ke6 {[%clk 0:00:26]}  Qe5+ {[%clk 0:00:06]} 68. Kf7 {[%clk 0:00:25]}  Kf5 {[%clk 0:00:07]} 0-1


[Site "https://www.chess.com"]